{"text_format":"2","workbook":"xlsx","n_sheets":8,"sheets":["Übersicht","Boden","Decke","Wand","Wandkonsole","Boden-Wand","Decke-Wand","Hilfstabelle"],"not_rendered":{"charts":0,"images":13,"macros":0,"external_links":0,"defined_names":7,"comments":0,"pivot_tables":0},"unopened":[],"bounds":{"document_bytes":16777216,"sheet_cells":100000,"run_cost":"one","rows_first":2000,"rows_last":500,"rows_between":2000,"halvings":0,"cell_chars":16384,"cell_head_chars":4096},"cells_cut":0,"cells_raw":0,"read":"whole","date_system":"1900"}

{"sheet":"Übersicht","index":0,"n_rows":21,"n_cols":6,"rows_kept":21,"cut":false,"hidden":false,"merged":[[0,3,0,4],[2,0,2,5],[12,0,13,5],[14,0,14,5],[15,0,15,5],[4,0,5,5],[6,0,7,5],[8,0,9,5],[10,0,11,5]]}
[null,null,null,"Eidgenössisches Departement für Verteidigung,\nBevölkerungsschutz und Sport VBS\n\nBundesamt für Bevölkerungsschutz BABS\nLabor Spiez"]
[]
["Vereinfachter rechnerischer Nachweis der schocksicheren Befestigungen"]
[]
["Für den rechnerischen Nachweis der schocksicheren Befestigungen werden die bei einer Schockbelastung auf die \nBefestigungen (Anker, Dübel) eins Einbauteils wirkenden Kräfte (Befestigungskräfte) berechnet."]
[]
["Die aufgrund der Schockbelastung auf das Einbauteil wirkenden Kräfte werden als statische Ersatzlasten berücksichtigt, \nwelche im Massenschwerpunkt des Einbauteils angreifen."]
[]
["Die Befestigungskräfte S sind grundsätzlich für Schockeinwirkungen in allen Raumrichtungen x, y und z, jeweils in positiver \nund negativer Richtung zu berechnen. Für den Nachweis sind die maximalen Befestigungskräfte Smax massgebend."]
[]
["Beim vereinfachten rechnerischen Nachweis wird vorausgesetzt, dass das Einbauteil ideal steif ist und die Befestigungen (Anker, Dübel) gleichmässig belastet werden (Lastausgleich).  "]
[]
["Für die sechs abgebildeten Situationen (Befestigungsorte) lassen sich mit den vorliegenden Arbeitsblättern die für den \nSchocksicherheitsnachweis benötigten Befestigungkräfte S für den Schutzgrad \"Basis\" und \"3 bar\" berechnen:"]
[]
["            Eingaben (Masse des Einbauteils, Lage des Massenschwerpunkts, Anzahl Befestigungen, Abmessungen) in den gelb markierten Feldern"]
["            Resultate (Befestigungskräfte) werden in den grün hinterlegten Feldern angezeigt "]
[]
["Befestigung \nam Boden","Befestigung \nan der Decke","Befestigung \nan der Wand","Befestigung auf \neiner Wandkonsole","Befestigung am \nBoden und der Wand","Befestigung an der \nDecke und der Wand"]
[]
[]
[{"$nulls":5},"dash@bbs 2018"]

{"sheet":"Boden","index":1,"n_rows":25,"n_cols":8,"rows_kept":25,"cut":false,"hidden":false,"merged":[[0,5,0,7],[24,0,24,5],[1,0,1,7],[17,5,18,7]]}
[{"$nulls":5},"Eidgenössisches Departement für Verteidigung,\nBevölkerungsschutz und Sport VBS\n\nBundesamt für Bevölkerungsschutz BABS\nLabor Spiez"]
["Befestigung des Einbauteils am Boden"]
[]
["Schutzgrad",null,null,"Basis"]
[]
[]
["Einbauteil"]
["Masse","m","[kg]",125]
["Anzahl Befestigungen (Dübel, Anker)","n","[-]",6]
["Abmessungen","bx","[mm]",800]
[null,"ex","[mm]",100]
[null,"by","[mm]",1200]
[null,"ey","[mm]",150]
[null,"hz","[mm]",600]
[]
[]
["Befestigungskraft ",{"$nulls":4},"Nachweis der Tragsicherheit"]
["bei Schockbelastung in x-Richtung","Sx","[kN]",{"$f":"(D$8*Hilfstabelle!D6/D$9*(1+4*(D$14/D10)^2)^0.5)/1000","v":5.8684102790755031},null,"Vom BABS für schocksichere Befestigungen in Schutzbauten \nzugelassener Dübel/Anker wählen.\nZulässige Last Rzul gemäss Zivilschutz Komponenten Datenbank:"]
["bei Schockbelastung in y-Richtung","Sy","[kN]",{"$f":"(D$8*Hilfstabelle!D6/D$9*(1+4*(D$14/D12)^2)^0.5)/1000","v":4.6035597733499189}]
["bei Schockbelastung in z-Richtung","Sz+","[kN]",{"$f":"(D8*(Hilfstabelle!D6-9.81)/D9*(1+2*D11/D10)*(1+2*D13/D12))/1000","v":4.7669270833333339},null,"https://www.zkdb.vbs.admin.ch"]
["Maximale Befestigungskraft","Smax","[kN]",{"$f":"MAX(D18:D20)","v":5.8684102790755031},null,"Rzul  ≥ Smax"]
[]
[]
["Vereinfachter rechnerischer Nachweis der schocksicheren Befestigungen",{"$nulls":5},"Datum:","2018-10-03"]
["Apparat, Einrichtung, Fabrikat, Typ, Baureihe",{"$nulls":5},"Visum:","dash"]

{"sheet":"Decke","index":2,"n_rows":25,"n_cols":8,"rows_kept":25,"cut":false,"hidden":false,"merged":[[0,5,0,7],[24,0,24,5],[1,0,1,7],[17,5,18,7]]}
[{"$nulls":5},"Eidgenössisches Departement für Verteidigung,\nBevölkerungsschutz und Sport VBS\n\nBundesamt für Bevölkerungsschutz BABS\nLabor Spiez"]
["Befestigung des Einbauteils an der Decke"]
[]
["Schutzgrad",null,null,"Basis"]
[]
[]
["Einbauteil"]
["Masse","m","[kg]",100]
["Anzahl Befestigungen (Dübel, Anker)","n","[-]",6]
["Abmessungen","bx","[mm]",800]
[null,"ex","[mm]",100]
[null,"by","[mm]",1200]
[null,"ey","[mm]",150]
[null,"hz","[mm]",400]
[]
[]
["Befestigungskraft ",{"$nulls":4},"Nachweis der Tragsicherheit"]
["bei Schockbelastung in x-Richtung","Sx","[kN]",{"$f":"$D$8/$D$9*((Hilfstabelle!D7)^2+(2*Hilfstabelle!D7*$D$14/D10+9.81)^2)^0.5/1000","v":3.8002187839064687},null,"Vom BABS für schocksichere Befestigungen in Schutzbauten \nzugelassener Dübel/Anker wählen.\nZulässige Last Rzul gemäss Zivilschutz Komponenten Datenbank"]
["bei Schockbelastung in y-Richtung","Sy","[kN]",{"$f":"$D$8/$D$9*((Hilfstabelle!D7)^2+(2*Hilfstabelle!D7*$D$14/D12+9.81)^2)^0.5/1000","v":3.2233843086474452}]
["bei Schockbelastung in z-Richtung","Sz-","[kN]",{"$f":"D8*(Hilfstabelle!D7+9.81)/D9*(1+2*D11/D10)*(1+2*D13/D12)/1000","v":4.3244791666666664},null,"https://www.zkdb.vbs.admin.ch"]
["Maximale Befestigungskraft","Smax","[kN]",{"$f":"MAX(D18:D20)","v":4.3244791666666664},null,"Rzul  ≥ Smax"]
[]
[]
["Vereinfachter rechnerischer Nachweis der schocksicheren Befestigungen",{"$nulls":5},"Datum:","2018-10-03"]
["Apparat, Einrichtung, Fabrikat, Typ, Baureihe",{"$nulls":5},"Visum:","dash"]

{"sheet":"Wand","index":3,"n_rows":25,"n_cols":8,"rows_kept":25,"cut":false,"hidden":false,"merged":[[0,5,0,7],[24,0,24,5],[23,0,23,4],[1,0,1,7],[17,5,18,7]]}
[{"$nulls":5},"Eidgenössisches Departement für Verteidigung,\nBevölkerungsschutz und Sport VBS\n\nBundesamt für Bevölkerungsschutz BABS\nLabor Spiez"]
["Befestigung des Einbauteils an der Wand"]
[]
["Schutzgrad",null,null,"Basis"]
[]
[]
["Einbauteil"]
["Masse","m","[kg]",100]
["Anzahl Befestigungen (Dübel, Anker)","n","[-]",6]
["Abmessungen","bx","[mm]",800]
[null,"ex","[mm]",100]
[null,"bz","[mm]",1200]
[null,"ez","[mm]",150]
[null,"hy","[mm]",500]
[]
[]
["Befestigungskraft ",{"$nulls":4},"Nachweis der Tragsicherheit"]
["bei Schockbelastung in x-Richtung","Sx","[kN]",{"$f":"(D8/D9*((Hilfstabelle!D8)^2+(9.81^2)+(4*(D14^2))*(Hilfstabelle!D8/D10+9.81/D12)^2)^0.5)/1000","v":4.2790660084314993},null,"Vom BABS für schocksichere Befestigungen in Schutzbauten \nzugelassener Dübel/Anker wählen.\nZulässige Last Rzul gemäss Zivilschutz Komponenten Datenbank"]
["bei Schockbelastung in y-Richtung","Sy","[kN]",{"$f":"(D8/D9*((9.81^2)+((Hilfstabelle!D8*(1+(2*D11/D10))*(1+(2*D13/D12))+(2*9.81*D14/D12)))^2)^0.5)/1000","v":4.2084376462035777}]
["bei Schockbelastung in z-Richtung","Sz-","[kN]",{"$f":"(D8*(Hilfstabelle!D8+9.81)/D9*(1+(4*(D14/D12)^2))^0.5)/1000","v":3.6026946143918308},null,"https://www.zkdb.vbs.admin.ch"]
["Maximale Befestigungskraft","Smax","[kN]",{"$f":"MAX(D18:D20)","v":4.2790660084314993},null,"Rzul  ≥ Smax"]
[]
[]
["Vereinfachter rechnerischer Nachweis der schocksicheren Befestigungen",{"$nulls":5},"Datum:","2018-10-03"]
["Apparat, Einrichtung, Fabrikat, Typ, Baureihe",{"$nulls":5},"Visum:","dash"]

{"sheet":"Wandkonsole","index":4,"n_rows":31,"n_cols":8,"rows_kept":31,"cut":false,"hidden":false,"merged":[[0,5,0,7],[30,0,30,5],[29,0,29,4],[1,0,1,7],[21,5,22,7]]}
[{"$nulls":5},"Eidgenössisches Departement für Verteidigung,\nBevölkerungsschutz und Sport VBS\n\nBundesamt für Bevölkerungsschutz BABS\nLabor Spiez"]
["Befestigung des Einbauteils auf einer Konsole an der Wand (Wandkonsole)"]
[]
["Schutzgrad",null,null,"Basis"]
[]
[]
["Einbauteil"]
["Masse","m","[kg]",65]
["Anzahl Konsolen","k","[-]",2]
["Anzahl Befestigungen pro Konsole","nK","[-]",3]
["Abmessungen","bx","[mm]",600]
[null,"hy","[mm]",300]
[null,"hz","[mm]",250]
[null,"bz","[mm]",500]
[null,"z1","[mm]",50]
[null,"z2","[mm]",350]
[null,"z3","[mm]",450]
[null,"z4","[mm]"]
[]
[]
["Befestigungskraft ",{"$nulls":4},"Nachweis der Tragsicherheit"]
["bei Schockbelastung in x-Richtung","Sx","[kN]",{"$f":"(D8/D9*(1/(D10^2)*((Hilfstabelle!D9)^2+(9.81^2))+D12^2*(2*Hilfstabelle!D9/(D10*D11)+9.81/SUM(Wandkonsole!D15:D18))^2)^0.5)/1000","v":2.476979728348792},null,"Vom BABS für schocksichere Befestigungen in Schutzbauten \nzugelassener Dübel/Anker wählen.\nZulässige Last Rzul gemäss Zivilschutz Komponenten Datenbank"]
["bei Schockbelastung in y+-Richtung","Sy+","[kN]",{"$f":"($D$8/$D$9*((9.81/$D$10)^2+((Hilfstabelle!D9*($D$13+$D$14)+9.81*$D$12)/SUM($D$15:$D$18))^2)^0.5)/1000","v":4.5944542958059786}]
["bei Schockbelastung in y--Richtung","Sy-","[kN]",{"$f":"(D8/D9*((9.81/D10)^2+((Hilfstabelle!D9*(D13+D14)-(9.81*D12))/(D10*(D14-((D15+D16+D17+D18)/D10))))^2)^0.5)/1000","v":5.713213528851341},null,"https://www.zkdb.vbs.admin.ch"]
["bei Schockbelastung in z+-Richtung","Sz+","[kN]",{"$f":"(D8/D9*((9.81/D10)^2+((Hilfstabelle!D9-9.81)*D12/(D10*(D14-((D15+D16+D17+D18)/D10))))^2)^0.5)/1000","v":2.1991693740194274}]
["bei Schockbelastung in z--Richtung","Sz-","[kN]",{"$f":"($D$8/$D$9*((9.81/$D$10)^2+((Hilfstabelle!D9+9.81)*$D$12/SUM($D$15:$D$18))^2)^0.5)/1000","v":1.9077682839043546}]
["Maximale Befestigungskraft","Smax","[kN]",{"$f":"MAX(D22:D26)","v":5.713213528851341},null,"Rzul  ≥ Smax"]
[]
[]
["Vereinfachter rechnerischer Nachweis der schocksicheren Befestigungen",{"$nulls":5},"Datum:","2018-10-03"]
["Apparat, Einrichtung, Fabrikat, Typ, Baureihe",{"$nulls":5},"Visum:","dash"]

{"sheet":"Boden-Wand","index":5,"n_rows":29,"n_cols":8,"rows_kept":29,"cut":false,"hidden":false,"merged":[[0,5,0,7],[28,0,28,5],[27,0,27,4],[1,0,1,7],[18,5,19,7]]}
[{"$nulls":5},"Eidgenössisches Departement für Verteidigung,\nBevölkerungsschutz und Sport VBS\n\nBundesamt für Bevölkerungsschutz BABS\nLabor Spiez"]
["Befestigung des Einbauteils am Boden und der Wand"]
[]
["Schutzgrad",null,null,"Basis"]
[]
[]
["Einbauteil"]
["Masse","m","[kg]",200]
["Anzahl Befestigungen am Boden","nB","[-]",4]
["Anzahl Befestigungen an der Wand","nW","[-]",2]
["Abmessungen","bx","[mm]",800]
[null,"by","[mm]",600]
[null,"bz","[mm]",2000]
[null,"hy","[mm]",300]
[null,"hz","[mm]",1000]
[]
[]
["Befestigungskraft ",{"$nulls":4},"Nachweis der Tragsicherheit"]
["bei Schockbelastung in x-Richtung","Sx, B","[kN]",{"$f":"$D$8*Hilfstabelle!D10*((1/($D$10+$D$9))+(2*$D$14/($D$10*$D$11+$D$9*$D$12)))/1000","v":9.8958333333333321},null,"Vom BABS für schocksichere Befestigungen in Schutzbauten \nzugelassener Dübel/Anker wählen.\nZulässige Last Rzul gemäss Zivilschutz Komponenten Datenbank"]
["bei Schockbelastung in x-Richtung","Sx,W","[kN]",{"$f":"$D$8*Hilfstabelle!D10*((1/($D$10+$D$9))^2+(2*$D$14/($D$10*$D$11+$D$9*$D$12))^2)^0.5/1000","v":7.0070958578508904}]
["bei Schockbelastung in y+-Richtung","Sy+,B","[kN]",{"$f":"($D$8*Hilfstabelle!$D$10/$D$9)*(1-($D$15/$D$13))/1000","v":3.90625},null,"https://www.zkdb.vbs.admin.ch"]
["bei Schockbelastung in y+-Richtung","Sy+,W","[kN]",{"$f":"$D$8*Hilfstabelle!$D$10/$D$10*($D$15/$D$13)/1000","v":7.8125}]
["bei Schockbelastung in z+-Richtung","Sz+,B","[kN]",{"$f":"($D$8*(Hilfstabelle!$D$10-9.81)/$D$9)*($D$14/$D$12)/1000","v":3.661}]
["bei Schockbelastung in z+-Richtung","Sz+,W","[kN]",{"$f":"($D$8*(Hilfstabelle!$D$10-9.81)/$D$10)*(1-($D$14/$D$12))/1000","v":7.3220000000000001}]
["Maximale Befestigungskraft","Smax","[kN]",{"$f":"MAX(D19:D24)","v":9.8958333333333321},null,"Rzul  ≥ Smax"]
[]
[]
["Vereinfachter rechnerischer Nachweis der schocksicheren Befestigungen",{"$nulls":5},"Datum:","2018-10-03"]
["Apparat, Einrichtung, Fabrikat, Typ, Baureihe",{"$nulls":5},"Visum:","dash"]

{"sheet":"Decke-Wand","index":6,"n_rows":28,"n_cols":8,"rows_kept":28,"cut":false,"hidden":false,"merged":[[0,5,0,7],[27,0,27,5],[26,0,26,4],[1,0,1,7],[17,5,18,7]]}
[{"$nulls":5},"Eidgenössisches Departement für Verteidigung,\nBevölkerungsschutz und Sport VBS\n\nBundesamt für Bevölkerungsschutz BABS\nLabor Spiez"]
["Befestigung des Einbauteils an der Decke und der Wand"]
[]
["Schutzgrad",null,null,"Basis"]
[]
[]
["Einbauteil"]
["Masse","m","[kg]",150]
["Anzahl Befestigungen (Dübel, Anker)","n","[-]",8]
["Abmessungen","bx","[mm]",1200]
[null,"by","[mm]",900]
[null,"bz","[mm]",750]
[null,"hy","[mm]",450]
[null,"hz","[mm]",350]
[]
[]
["Befestigungskraft ",{"$nulls":4},"Nachweis der Tragsicherheit"]
["bei Schockbelastung in x-Richtung","Sx,D","[kN]",{"$f":"$D$8/$D$9*((Hilfstabelle!$D$11)^2+4*((Hilfstabelle!$D$11*$D$13/$D$10)+9.81)^2)^0.5/1000","v":3.8939716580480708},null,"Vom BABS für schocksichere Befestigungen in Schutzbauten \nzugelassener Dübel/Anker wählen.\nZulässige Last Rzul gemäss Zivilschutz Komponenten Datenbank"]
["bei Schockbelastung in x-Richtung","Sx,W","[kN]",{"$f":"$D$8/$D$9*((Hilfstabelle!$D$11)^2+(9.81)^2+4*(Hilfstabelle!$D$11*$D$13/$D$10)^2)^0.5/1000","v":3.6667257980886898}]
["bei Schockbelastung in y+-Richtung","Sy+,D","[kN]",{"$f":"2*D8/D9*((Hilfstabelle!D11)^2+(9.81*D13/D11)^2)^0.5/1000","v":5.8622613720757331},null,"https://www.zkdb.vbs.admin.ch"]
["bei Schockbelastung in y+-Richtung","Sy+,W","[kN]",{"$f":"2*D8/D9*((Hilfstabelle!D11*D14/D12)^2+(9.81)^2)^0.5/1000","v":2.759010448738823}]
["bei Schockbelastung in z--Richtung","Sz-,D","[kN]",{"$f":"2*$D$8/$D$9*(Hilfstabelle!$D$11+9.81)*D13/D11/1000","v":3.1136249999999999}]
["bei Schockbelastung in z--Richtung","Sz-,W","[kN]",{"$f":"2*$D$8/$D$9*(Hilfstabelle!$D$11+9.81)/1000","v":6.2272499999999997}]
["Maximale Befestigungskraft","Smax","[kN]",{"$f":"MAX(D18:D23)","v":6.2272499999999997},null,"Rzul  ≥ Smax"]
[]
[]
["Vereinfachter rechnerischer Nachweis der schocksicheren Befestigungen",{"$nulls":5},"Datum:","2018-10-03"]
["Apparat, Einrichtung, Fabrikat, Typ, Baureihe",{"$nulls":5},"Visum:","dash"]

{"sheet":"Hilfstabelle","index":7,"n_rows":11,"n_cols":4,"rows_kept":11,"cut":false,"hidden":true,"merged":[]}
["Schutzgrade"]
["Basis"]
["3 bar"]
[]
["Eingesetzter a x DLF Wert"]
["a x  DLF","Boden","[m/s2]",{"$f":"IF(Boden!D4=\"Basis\",156.25,IF(Boden!D4=\"3 bar\",256))","v":156.25}]
["a x  DLF","Decke","[m/s2]",{"$f":"IF(Decke!D4=\"Basis\",156.25,IF(Decke!D4=\"3 bar\",256))","v":156.25}]
["a x  DLF","Wand","[m/s2]",{"$f":"IF(Wand!D4=\"Basis\",156.25,IF(Wand!D4=\"3 bar\",256))","v":156.25}]
["a x  DLF","Wandkonsole","[m/s2]",{"$f":"IF(Wandkonsole!D4=\"Basis\",156.25,IF(Wandkonsole!D4=\"3 bar\",256))","v":156.25}]
["a x  DLF","Boden-Wand","[m/s2]",{"$f":"IF('Boden-Wand'!D4=\"Basis\",156.25,IF('Boden-Wand'!D4=\"3 bar\",256))","v":156.25}]
["a x  DLF","Decke-Wand","[m/s2]",{"$f":"IF('Decke-Wand'!D4=\"Basis\",156.25,IF('Decke-Wand'!D4=\"3 bar\",256))","v":156.25}]